bitfinex/quotes_ETHUSD_20220309
["timestamp","ask_amount","ask_price","bid_price","bid_amount"]
[1646825196663,0.6915271,2753.8,2753.2,1.1411]
[1646825196864,0.90854,2753.7,2753.2,1.1411]
[1646825197063,0.90854,2753.7,2753.2,0.01523787]
[1646825197064,0.6915271,2753.6,2753.2,0.01523787]
[1646825197466,0.6915271,2753.6,2753.2,0.92366787]
[1646825197765,0.6915271,2753.6,2753.2,1.82907441]
[1646825197967,0.6915271,2753.6,2753.2,1.81383654]
[1646825198264,0.6915271,2753.6,2753.3,0.00380935]
[1646825198669,0.026644,2753.4,2753.3,0.00380935]
[1646825198866,0.935324,2753.4,2753.3,0.00380935]
[1646825199066,0.935324,2753.4,2752.7,0.0289404]
[1646825199269,1.6268511,2753.4,2752.7,0.0289404]
[1646825199509,0.70663002,2753.3,2752.8,0.04092649]
[1646825199912,0.70663002,2753.3,2752.9,0.90858]
[1646825200714,0.70663002,2753.3,2753.0,0.00380967]
[1646825200915,0.70663002,2753.3,2753.2,0.029168]
[1646825201125,0.70663002,2753.3,2753.2,1.0978703]
[1646825201317,0.70663002,2753.3,2753.0,1.84980767]
[1646825201518,0.70663002,2753.2,2753.1,0.80377701]
[1646825201717,0.70663002,2753.2,2753.1,0.77460901]
[1646825201916,0.70663002,2753.6,2753.1,0.80758651]
[1646825202116,0.70663002,2753.5,2753.1,0.0329775]
[1646825202318,0.90845,2753.7,2753.1,0.0038095]
[1646825202319,0.70663002,2753.4,2753.1,0.0038095]
[1646825202518,0.70663002,2753.3,2753.1,0.77839346]
[1646825202717,0.70663002,2753.6,2753.1,0.77839346]
[1646825202917,0.70663002,2753.6,2753.1,0.77458396]
[1646825203168,0.70663002,2753.6,2753.2,0.029168]
[1646825203368,1.1512,2753.8,2753.3,0.77458396]
[1646825203369,0.85214202,2753.5,2753.3,0.77458396]
[1646825203569,0.70663002,2753.4,2753.3,0.77458396]
[1646825203971,0.70663002,2753.4,2753.3,0.80375196]
[1646825204370,0.70663002,2753.4,2753.3,1.68290396]
[1646825204570,0.70663002,2753.6,2753.3,1.68290396]
[1646825204769,1.03141266,2753.8,2753.4,0.77521022]
[1646825204770,0.70663002,2753.5,2753.4,0.77521022]
[1646825205170,0.70663002,2753.7,2753.4,0.77521022]
[1646825205572,0.70663002,2753.7,2753.3,0.00384546]
[1646825205974,0.70663002,2753.7,2753.3,0.77950963]
[1646825206175,0.70663002,2753.7,2753.4,0.77566417]
[1646825206376,0.70663002,2753.7,2753.3,0.00384546]
[1646825206574,0.70663002,2753.7,2753.2,0.77561368]
[1646825206774,0.70663002,2753.7,2753.4,0.0038454]
[1646825207211,4.20663002,2753.7,2753.4,0.0038454]
[1646825207413,0.70663002,2753.6,2753.4,0.0038454]
[1646825207710,0.70663002,2753.6,2753.2,0.77561368]
[1646825208112,3.5,2753.5,2753.4,0.00378492]
[1646825208311,4.20663002,2753.5,2753.4,0.00378492]
[1646825208612,0.70663002,2753.5,2753.4,0.00378492]
[1646825208914,0.70663002,2753.5,2753.1,0.77576032]
[1646825208915,1.37403957,2753.6,2753.1,0.77576032]
[1646825209112,0.70663002,2753.5,2753.3,0.00378503]
[1646825209313,1.61517002,2753.4,2753.3,0.00378503]
[1646825210112,5.11517002,2753.4,2753.0,0.7758088]
[1646825210310,0.70663002,2753.3,2753.1,0.7758088]
[1646825210513,0.70663002,2753.3,2753.2,0.00378514]
[1646825210964,1.57892318,2753.3,2753.2,0.00378514]
[1646825211365,1.57892318,2753.3,2752.9,0.77565074]
[1646825211568,0.70663002,2753.2,2753.1,0.00378509]
[1646825212464,0.70663002,2753.2,2752.9,0.77565074]
[1646825212663,0.70663002,2753.1,2753.0,0.0037852]
[1646825213063,0.70663002,2753.3,2753.0,0.0037852]
[1646825213265,5.98458955,2753.6,2753.0,0.0037852]
[1646825213266,0.70663002,2753.2,2753.0,0.0329532]
[1646825213465,1.88430955,2753.7,2753.1,0.80481874]
[1646825213666,1.88430955,2753.7,2753.2,0.83398674]
[1646825213667,0.70905506,2753.6,2753.2,0.83398674]
[1646825213866,0.70905506,2753.6,2753.3,0.77565074]
[1646825214068,0.70905506,2753.5,2753.3,0.80481874]
[1646825214265,0.66740955,2753.9,2753.4,0.77565074]
[1646825214710,1.37657574,2753.9,2753.5,0.029168]
[1646825214910,1.37657574,2753.9,2753.3,2.84151494]
[1646825215108,1.05982106,2754.0,2753.5,0.029168]
[1646825215109,1.37657574,2753.8,2753.5,0.029168]
[1646825215311,0.70916619,2753.7,2753.5,0.00378492]
[1646825215509,0.70916619,2753.6,2753.5,0.00378492]
[1646825215913,0.66740955,2753.6,2753.5,0.00378492]
[1646825216119,0.66740955,2753.6,2753.3,0.029168]
[1646825216316,0.66740955,2753.6,2753.0,1.2456]
[1646825216317,1.02187063,2753.4,2753.0,1.2456]
[1646825216514,0.70916619,2753.3,2753.1,0.77598769]
[1646825217315,0.70916619,2753.3,2752.8,0.04092649]
[1646825217515,0.70916619,2753.3,2752.9,0.77603935]
[1646825217516,1.61773619,2753.3,2752.9,0.77603935]
[1646825217717,0.70916619,2753.2,2752.9,0.80520735]
[1646825217916,0.70916619,2753.2,2753.0,0.77603935]
[1646825218161,0.70916619,2753.2,2753.1,0.77603935]
[1646825218362,0.70916619,2753.3,2753.1,0.80520735]
[1646825218662,0.70916619,2753.3,2753.2,0.77603935]
[1646825218862,1.37657574,2753.5,2753.2,0.77603935]
[1646825219064,0.70916619,2753.4,2753.2,0.77603935]
[1646825219266,1.61773619,2753.3,2753.2,0.77603935]
[1646825219463,1.61773619,2753.3,2753.2,0.80520735]
[1646825219664,1.56773619,2753.3,2753.2,0.029168]
[1646825219864,1.56773619,2753.3,2753.2,0.77599126]
[1646825220064,1.56773619,2753.3,2753.1,0.78013272]
[1646825220265,0.85857,2753.3,2753.2,0.77599126]
[1646825220464,1.56827165,2753.3,2753.1,0.03330946]
[1646825220667,0.70970165,2753.2,2753.1,0.03330946]
[1646825220871,0.70970165,2753.2,2753.1,0.00414146]
[1646825221070,0.70970165,2753.2,2753.1,0.77593444]
[1646825221271,1.55940165,2753.2,2753.0,0.029168]
[1646825221471,0.8497,2753.2,2753.1,0.77590748]
[1646825221672,0.74044607,2752.9,2752.8,0.07009449]
[1646825221939,1.45011429,2752.9,2752.8,0.84616632]
[1646825223524,1.45011429,2752.9,2752.8,0.81699832]
[1646825224530,2.48048328,2752.9,2752.8,0.04092649]
[1646825225226,1.45011429,2752.9,2752.8,0.04092649]
[1646825225426,2.49511429,2752.9,2752.8,0.04092649]
[1646825226461,2.49511429,2752.9,2752.8,0.81698956]
[1646825226663,2.49511429,2752.9,2752.8,0.04092649]
[1646825227465,2.49511429,2752.9,2752.8,0.81699057]
[1646825228165,2.49511429,2752.9,2752.8,0.04092649]
[1646825229514,2.49511429,2752.9,2752.7,0.9374704]
[1646825229719,0.70966822,2752.8,2752.7,0.9374704]
[1646825229910,0.70966822,2752.8,2752.7,0.94164221]
[1646825230109,0.70966822,2752.8,2752.7,0.98313712]
[1646825230713,0.70966822,2752.8,2752.7,0.97896531]
[1646825231316,0.70966822,2752.8,2752.7,1.78350034]
[1646825232516,0.70966822,2752.8,2752.7,1.75433234]
[1646825235166,0.70966822,2752.8,2752.7,1.78350034]
[1646825235365,0.74044607,2752.9,2752.7,2.59150034]
[1646825235568,0.74044607,2752.9,2752.8,1.13836703]
[1646825235768,0.74044607,2752.9,2752.8,1.62429352]
[1646825236171,0.74044607,2752.9,2752.8,1.65346152]
[1646825236570,0.53164901,2753.5,2752.8,1.65346152]
[1646825236571,0.53164901,2753.5,2753.0,0.363]
[1646825236771,0.69526278,2753.4,2753.2,1.27118]
[1646825237012,0.69526278,2753.4,2753.3,0.77536703]
[1646825237214,0.69526278,2753.4,2753.3,1.95893383]
[1646825237716,0.69526278,2753.4,2753.3,2.76693383]
[1646825238714,0.69526278,2753.4,2753.3,2.40393383]
[1646825239023,0.69526278,2753.4,2753.3,2.76693383]
[1646825239218,0.69526278,2753.4,2753.3,2.40393383]
[1646825239921,0.69526278,2753.4,2753.3,2.76693383]
[1646825240522,0.69526278,2753.4,2753.3,2.40393383]
[1646825241766,0.69526278,2753.4,2753.3,1.22036703]
[1646825241966,0.69526278,2753.4,2753.3,0.445]
[1646825242166,0.69526278,2753.4,2753.3,1.24536928]
[1646825242366,0.69526278,2753.4,2753.3,0.445]
[1646825242665,0.69526278,2753.4,2753.3,1.24541231]
[1646825242869,0.69526278,2753.4,2753.3,0.445]
[1646825243065,0.69526278,2753.4,2753.3,1.2454132]
[1646825243266,0.69526278,2753.4,2753.3,1.24542175]
[1646825243466,0.69526278,2753.4,2753.3,0.445]
[1646825243666,0.69526278,2753.4,2753.3,1.24541933]
[1646825243868,0.69526278,2753.4,2753.3,0.445]
[1646825244269,0.69526278,2753.4,2753.3,1.24540849]
[1646825244531,0.69526278,2753.4,2753.3,1.24543745]
[1646825244732,0.69526278,2753.4,2753.3,1.24543706]
[1646825244933,0.69526278,2753.4,2753.3,1.24540205]
[1646825245130,0.69526278,2753.4,2753.3,0.445]
[1646825245331,0.69526278,2753.4,2753.3,1.24543335]
[1646825245534,0.69526278,2753.4,2753.3,1.24543267]
[1646825245735,0.69526278,2753.4,2753.3,0.80045064]
[1646825245931,0.69526278,2753.4,2753.3,0.80045233]
[1646825246132,0.69526278,2753.4,2753.2,0.937348]
[1646825246332,0.69526278,2753.3,2753.2,0.937348]
[1646825246731,0.69526278,2753.3,2753.2,1.73765371]
[1646825247133,0.69526278,2753.3,2753.2,0.937348]
[1646825247333,0.69526278,2753.3,2753.2,1.7376643]
[1646825247534,0.69526278,2753.3,2753.2,1.73762399]
[1646825247733,0.69526278,2753.3,2753.2,0.937348]
[1646825248173,0.69526278,2753.3,2753.2,1.73763132]
[1646825248367,0.69526278,2753.3,2753.2,0.937348]
[1646825248568,0.69526278,2753.3,2753.2,1.73755169]
[1646825248772,0.69526278,2753.3,2753.2,2.78255169]
[1646825248773,0.68464876,2753.3,2753.2,2.78255169]
[1646825248969,0.66740955,2753.9,2753.2,2.78255169]
[1646825249169,0.66740955,2753.9,2753.4,0.029168]
[1646825249375,0.66740955,2753.9,2753.6,0.029168]
[1646825249570,0.66740955,2754.0,2753.8,0.90005418]
[1646825249770,0.66740955,2754.0,2753.8,1.34779561]
[1646825249969,0.66740955,2754.1,2753.8,1.34779561]
[1646825250370,1.34082812,2754.1,2753.8,1.34779561]
[1646825250570,0.67341857,2754.0,2753.8,1.34779561]
[1646825250778,0.67341857,2754.0,2753.8,1.382178]
[1646825250779,0.67341857,2753.9,2753.8,1.382178]
[1646825250976,0.67341857,2753.9,2753.8,1.35301]
[1646825251676,0.66740955,2754.1,2753.8,1.35301]
[1646825251926,0.67341857,2754.0,2753.9,1.00604582]
[1646825252313,1.34082812,2754.2,2753.9,1.00604582]
[1646825252513,0.67341857,2754.1,2753.9,1.00604582]
[1646825252713,0.67341857,2754.0,2753.9,0.029168]
[1646825252915,1.34082812,2754.2,2753.9,0.029168]
[1646825253816,2.44569258,2754.2,2753.9,0.029168]
[1646825254018,1.34082812,2754.1,2753.9,0.029168]
[1646825254219,1.34082812,2754.0,2753.7,0.029168]
[1646825255018,1.34082812,2754.0,2753.6,0.029168]
[1646825255217,1.34082812,2753.9,2753.6,0.029168]
[1646825255517,0.67341857,2753.8,2753.6,0.029168]
[1646825255766,0.66740955,2753.9,2753.6,0.029168]
[1646825255767,0.67341857,2753.7,2753.6,0.029168]
[1646825255974,0.67341857,2753.7,2753.5,0.029168]
[1646825256267,0.67341857,2753.6,2753.5,0.029168]
[1646825256668,1.34082812,2754.0,2753.5,0.84019751]
[1646825256867,1.34082812,2754.0,2753.5,0.029168]
[1646825256868,0.67341857,2753.9,2753.5,0.029168]
[1646825257069,1.1878,2754.1,2753.7,0.029168]
[1646825257070,0.67341857,2753.8,2753.7,0.029168]
[1646825257268,0.145501,2753.8,2753.7,0.029168]
[1646825257469,0.145501,2753.8,2753.6,2.11619]
[1646825257470,4.17341857,2753.9,2753.6,0.029168]
[1646825257668,1.85520955,2754.1,2753.5,0.029168]
[1646825257669,0.67341857,2753.8,2753.5,0.029168]
[1646825257869,0.67341857,2753.7,2753.5,0.029168]
[1646825258070,0.67341857,2753.6,2753.5,0.029168]
[1646825258269,0.66740955,2753.9,2753.5,0.029168]
[1646825258468,1.20446164,2753.7,2753.5,0.029168]
[1646825258671,0.67341857,2753.6,2753.5,0.029168]
[1646825259419,0.67341857,2753.6,2753.4,0.029168]
[1646825263770,0.67341857,2753.5,2753.4,0.029168]
[1646825263966,0.67341857,2753.7,2753.4,0.83931055]
[1646825264165,0.67341857,2753.6,2753.4,0.029168]
[1646825264367,0.67341857,2753.5,2753.4,0.029168]
[1646825264566,0.67341857,2753.5,2753.4,0.83935933]
[1646825264766,0.67341857,2753.6,2753.4,0.83935933]
[1646825264965,0.67341857,2753.5,2753.4,0.029168]
[1646825265166,0.67341857,2753.5,2753.4,0.83933417]
[1646825265366,1.34082812,2753.9,2753.4,0.83933417]
[1646825265568,0.67341857,2753.8,2753.4,0.029168]
[1646825265770,0.67341857,2753.7,2753.5,0.029168]
[1646825265969,0.67219639,2753.6,2753.5,0.93826723]
[1646825266171,1.1878,2754.1,2753.5,0.85178015]
[1646825266172,0.66740955,2754.1,2753.5,0.85178015]
[1646825266375,3.16740955,2754.2,2753.7,0.029168]
[1646825266574,3.16740955,2754.2,2753.8,0.029168]
[1646825266769,0.66740955,2754.2,2753.8,0.029168]
[1646825267014,2.5,2754.3,2753.8,0.029168]
[1646825267015,0.66740955,2754.1,2753.8,0.029168]
[1646825267414,1.00234346,2753.9,2753.8,0.029168]
[1646825267614,1.00234346,2753.9,2753.7,0.937188]
[1646825267918,1.00234346,2753.9,2753.7,0.029168]
[1646825268117,1.00234346,2753.9,2753.5,0.029168]
[1646825268315,4.50234346,2753.9,2753.5,0.029168]
[1646825268518,5.16975301,2753.9,2753.4,0.029168]
[1646825268715,1.57576955,2754.0,2753.4,0.029168]
[1646825269021,2.5,2754.3,2753.7,0.029168]
[1646825269022,0.81292155,2754.1,2753.7,0.029168]
[1646825269218,0.66740955,2754.1,2753.8,0.029168]
[1646825269416,0.66740955,2754.1,2753.7,0.029168]
[1646825269614,0.66740955,2754.1,2753.7,0.90806]
[1646825269814,2.5,2754.3,2753.7,0.90806]
[1646825269815,0.66740955,2754.2,2753.7,0.90806]
[1646825270215,1.06920978,2754.0,2753.7,0.90806]
[1646825271072,1.73661933,2754.0,2753.3,1.3289]
[1646825271273,0.66740955,2753.9,2753.3,2.96413]
[1646825271473,4.16740955,2753.9,2753.3,2.96413]
[1646825271774,4.16740955,2753.9,2753.3,1.81663]
[1646825271972,4.16740955,2753.9,2753.2,0.3]
[1646825272270,0.93639168,2753.3,2753.1,1.8166]
[1646825273271,0.93639168,2753.3,2753.2,0.3]
[1646825273872,0.93639168,2753.3,2753.1,1.8166]
[1646825274074,0.93639168,2753.3,2752.9,2.00238016]
[1646825274277,0.93639168,2753.3,2752.9,0.00418016]
[1646825274514,0.93639168,2753.3,2752.7,0.9375304]
[1646825274915,0.93639168,2753.3,2752.9,0.00418013]
[1646825275117,1.84501168,2753.3,2752.9,0.00418013]
[1646825275518,1.60380123,2753.3,2752.9,0.00418013]
[1646825275719,1.60380123,2753.3,2752.7,0.0289404]
[1646825275720,0.66740955,2753.2,2752.7,0.0289404]
[1646825275920,1.29939168,2753.3,2752.7,0.0289404]
[1646825275921,1.60380123,2753.3,2752.7,0.0289404]
[1646825276222,1.60380123,2753.3,2752.5,0.90858]
[1646825276223,5.16740955,2753.1,2752.5,0.01609542]
[1646825276423,4.16740955,2753.0,2752.5,0.01609542]
[1646825276620,4.16740955,2753.0,2752.6,0.04206333]
[1646825276824,0.66740955,2752.9,2752.6,0.04206333]
[1646825277022,3.5,2752.8,2752.6,0.04206333]
[1646825277220,1.02154218,2752.7,2752.6,0.04206333]
[1646825278470,1.02154218,2752.7,2752.6,0.95067333]
[1646825279070,1.66740955,2753.0,2752.6,0.04206333]
[1646825279269,0.66740955,2753.1,2752.6,0.04206333]
[1646825280272,0.66740955,2753.1,2752.6,0.95060333]
[1646825280474,0.145552,2753.2,2752.7,0.90856]
[1646825280672,1.03040955,2753.4,2752.7,0.95005491]
[1646825280873,0.66740955,2753.4,2752.8,0.04092649]
[1646825281075,0.66740955,2753.3,2752.8,0.04092649]
[1646825282023,3.7528794,2753.5,2752.8,0.04484184]
[1646825282024,0.92989233,2752.9,2752.8,0.04484184]
[1646825282218,0.92989233,2752.9,2752.8,0.00391535]
[1646825282917,0.92989233,2752.9,2752.5,1.81711]
[1646825283216,0.92989233,2752.9,2752.7,0.00391536]
[1646825284219,0.92989233,2752.9,2752.6,0.04206333]
[1646825284517,0.92989233,2752.9,2752.7,0.00391541]
[1646825284919,0.92989233,2752.9,2752.8,0.04092649]
[1646825285772,0.92989233,2752.9,2752.7,0.003912]
[1646825286171,0.92989233,2752.9,2752.8,0.04092649]
[1646825286371,1.54737065,2752.9,2752.8,0.04092649]
[1646825287072,1.54737065,2752.9,2752.7,0.003912]
[1646825287276,0.61747832,2752.8,2752.7,0.003912]
[1646825287873,0.61747832,2752.8,2752.5,0.90866]
[1646825288072,0.61747832,2752.8,2752.6,0.00391212]
[1646825288273,0.61747832,2752.8,2752.6,0.04597545]
[1646825289074,0.61747832,2752.8,2752.6,0.04206333]
[1646825289272,0.61747832,2752.8,2752.6,0.04597187]
[1646825289820,0.61747832,2752.8,2752.7,0.04149491]
[1646825290619,0.61747832,2753.0,2752.7,0.04149491]
[1646825290822,0.61747832,2752.9,2752.7,0.04149491]
[1646825291020,0.61747832,2753.0,2752.7,0.04149491]
[1646825291221,0.61747832,2752.9,2752.7,0.04149491]
[1646825291522,0.61747832,2752.8,2752.7,0.95005491]
[1646825291723,0.61747832,2752.8,2752.7,0.95396328]
[1646825292120,0.61747832,2752.8,2752.7,1.86251328]
[1646825292521,0.61747832,2753.0,2752.7,1.86251328]
[1646825292724,0.61747832,2752.9,2752.7,1.85860491]
[1646825292923,0.61747832,2752.8,2752.7,1.85860491]
[1646825293165,0.61747832,2753.0,2752.7,1.85860491]
[1646825294173,0.61747832,2752.9,2752.7,1.86251353]
[1646825294370,0.61747832,2752.8,2752.7,0.95396353]
[1646825294566,0.61747832,2752.8,2752.7,0.04540353]
[1646825294766,0.61747832,2753.1,2752.7,0.04540353]
[1646825294970,0.61747832,2753.1,2752.7,0.04149491]
[1646825295373,1.84519462,2753.1,2752.7,0.04149491]
[1646825295568,0.61747832,2753.0,2752.7,0.04149491]
[1646825296572,0.61747832,2753.0,2752.7,0.04540351]
[1646825297420,0.61747832,2753.0,2752.7,0.04149491]
[1646825297821,0.90879,2752.9,2752.7,0.04540351]
[1646825298020,4.14664632,2752.8,2752.7,0.04540351]
[1646825298221,0.64664632,2752.8,2752.7,0.04540351]
[1646825298420,1.64664632,2752.8,2752.7,0.04540351]
[1646825298620,1.64664632,2752.8,2752.7,0.04149491]
[1646825298820,0.64664632,2752.8,2752.7,0.04149491]
[1646825300870,0.61747832,2752.8,2752.7,0.04149491]
[1646825301272,0.029168,2753.2,2752.7,0.04149491]
[1646825301273,0.61747832,2753.0,2752.7,0.04149491]
[1646825301469,0.029168,2753.2,2752.7,0.04149491]
[1646825301470,0.61747832,2752.9,2752.7,0.04149491]
[1646825301673,0.61747832,2752.8,2752.7,0.04149491]
[1646825302069,0.61747832,2753.1,2752.7,0.04149491]
[1646825302471,0.61747832,2753.1,2752.7,0.95002491]
[1646825303272,3.5,2753.0,2752.7,0.95002491]
[1646825303478,0.029168,2752.8,2752.7,0.04149491]
[1646825303675,0.64664632,2752.8,2752.7,0.04149491]
[1646825305724,4.14664632,2752.8,2752.7,0.04149491]
[1646825306124,5.14664632,2752.8,2752.7,0.04149491]
[1646825306527,5.81438931,2752.8,2752.7,0.04149491]
[1646825307128,5.14664632,2752.8,2752.7,0.04149491]
[1646825307328,5.81438931,2752.8,2752.7,0.04149491]
[1646825308175,2.31438931,2752.8,2752.7,0.04149491]
[1646825308369,1.31438931,2752.8,2752.7,0.04149491]
[1646825308868,0.64664632,2752.8,2752.7,0.04149491]
[1646825309270,1.31438931,2752.8,2752.7,0.04149491]
[1646825309668,0.64664632,2752.8,2752.6,0.26633066]
[1646825309872,0.61747832,2752.7,2752.6,0.27023938]
[1646825310777,0.61747832,2752.7,2752.6,0.26633066]
[1646825312022,0.029168,2752.8,2752.6,0.26633066]
[1646825312222,1.28528263,2752.7,2752.6,0.26633066]
[1646825312621,0.029168,2752.8,2752.6,0.26633066]
[1646825312822,0.9190474,2752.9,2752.6,0.26633066]
[1646825313021,2.7364874,2753.1,2752.6,0.26633066]
[1646825313224,0.8898794,2753.0,2752.6,0.26633066]
[1646825313621,2.77698604,2753.1,2752.7,0.90871]
[1646825314222,0.90871,2752.9,2752.7,0.90871]
[1646825314521,2.77698604,2753.1,2752.7,0.90871]
[1646825314721,3.77698604,2753.1,2752.8,0.00374998]
[1646825314920,2.77698604,2753.1,2752.8,0.91244998]
[1646825315123,1.93037804,2753.1,2752.8,0.91244998]
[1646825315321,0.93037804,2753.1,2752.8,0.91244998]
[1646825315997,1.07086095,2752.9,2752.8,0.91244998]
[1646825316195,1.07086095,2752.9,2752.8,0.91244999]
[1646825316595,1.10002895,2752.9,2752.8,0.91244999]
[1646825316797,1.98990835,2752.9,2752.8,0.91244999]
[1646825316995,1.98990835,2752.9,2752.8,0.9087]
[1646825317196,5.93386516,2752.9,2752.7,0.00375003]
[1646825317396,4.40888,2752.8,2752.7,0.00375003]
[1646825317798,1.90888,2752.8,2752.7,0.00375003]
[1646825317994,5.40888,2752.8,2752.7,0.00375003]
[1646825318195,4.40888,2752.8,2752.7,0.00375003]
[1646825318394,1.90888,2752.8,2752.6,0.27010912]
[1646825318599,0.89211171,2752.7,2752.6,0.27010912]
[1646825319195,0.89211171,2752.7,2752.6,0.26633066]
[1646825319433,1.90888,2752.8,2752.6,0.26633066]
[1646825319622,0.89236251,2752.7,2752.6,0.26633066]
[1646825319822,1.054467,2752.8,2752.6,0.26633066]
[1646825320023,0.029168,2752.7,2752.6,0.26633066]
[1646825321629,0.029168,2752.7,2752.1,0.00345316]
[1646825321630,5.0,2752.3,2752.1,0.00345316]
[1646825321832,3.529168,2752.2,2752.1,0.00690632]
[1646825322230,3.529168,2752.2,2751.5,3.6355]
[1646825322231,6.0,2752.1,2751.5,3.6355]
[1646825322429,0.029168,2751.7,2751.5,3.64931264]
[1646825322629,2.56296729,2751.7,2751.5,3.64931264]
[1646825322827,3.56296729,2751.7,2751.5,3.64931264]
[1646825323278,5.5,2751.6,2751.5,0.02762528]
[1646825323475,7.16875683,2751.6,2751.5,0.02762528]
[1646825323676,6.5,2751.6,2751.5,0.02762528]
[1646825323876,1.0,2751.6,2751.5,0.02762528]
[1646825324274,3.56296729,2751.7,2751.5,0.02762528]
[1646825324476,0.66875683,2751.6,2751.5,0.02762528]
[1646825324674,1.89421046,2751.7,2751.5,0.02762528]
[1646825324675,3.56296729,2751.7,2751.5,0.02762528]
[1646825326080,3.56296729,2751.7,2751.5,0.0314154]
[1646825326681,2.89421046,2751.7,2751.5,0.0314154]
[1646825326933,2.86504246,2751.7,2751.5,0.0314154]
[1646825327123,1.86504246,2751.7,2751.5,0.02762528]
[1646825327323,1.90929,2751.7,2751.5,0.0314154]
[1646825327524,0.90929,2751.7,2751.5,0.0314154]
[1646825328322,0.90929,2751.7,2751.5,0.02762528]
[1646825328722,0.90929,2751.7,2751.5,0.03139897]
[1646825329423,0.90929,2751.7,2751.5,0.02762528]
[1646825329424,0.938458,2751.7,2751.5,0.02762528]
[1646825329822,0.90919,2751.4,2751.1,0.2923003]
[1646825330876,2.10849469,2751.4,2751.1,0.29607437]
[1646825331175,2.10849469,2751.4,2751.1,0.08416511]
[1646825331176,2.13766269,2751.4,2751.1,0.08416511]
[1646825331574,0.938358,2751.4,2751.1,0.08416511]
[1646825331777,0.938358,2751.4,2751.1,0.08039104]
[1646825331975,0.1817,2751.3,2751.1,0.08039104]
[1646825332175,0.1817,2751.3,2751.1,0.08416511]
[1646825332776,0.54597655,2751.2,2751.1,0.08416511]
[1646825333074,0.54597655,2751.3,2751.1,0.08039104]
[1646825333275,0.54597655,2751.2,2751.1,0.08039104]
[1646825333476,0.54597655,2751.3,2751.1,0.0841624]
[1646825333676,1.09089,2751.4,2751.1,0.0841624]
[1646825333677,0.54586563,2751.2,2751.1,0.0841624]
[1646825333877,0.54586563,2751.2,2751.1,1.23522046]
[1646825334077,0.54586563,2751.3,2751.1,1.23522046]
[1646825334282,0.54586563,2751.2,2751.1,1.2314491]
[1646825334530,0.54586563,2751.3,2751.1,1.2314491]
[1646825334729,0.54586563,2751.2,2751.1,1.2314491]
[1646825334929,0.54586563,2751.3,2751.1,1.2314491]
[1646825335733,0.54586563,2751.3,2751.1,1.23522046]
[1646825336735,0.54586563,2751.3,2751.1,1.2314491]
[1646825336937,0.54586563,2751.3,2751.1,1.23523209]
[1646825337737,0.54586563,2751.2,2751.1,1.23523209]
[1646825337935,0.029168,2751.5,2751.1,4.7314491]
[1646825338177,0.54558901,2751.4,2751.1,7.46191209]
[1646825338377,1.235568,2751.9,2751.1,4.32491209]
[1646825338378,0.029168,2751.8,2751.1,4.32491209]
[1646825338575,0.54558386,2751.7,2751.1,4.32491209]
[1646825338875,0.54558386,2751.7,2751.1,3.17385403]
[1646825339075,0.029168,2751.5,2751.1,2.80707104]
[1646825339276,0.54558386,2751.4,2751.1,2.80707104]
[1646825339480,0.54558386,2751.4,2751.3,0.00378277]
[1646825340279,0.54558386,2751.4,2751.3,0.08039104]
[1646825343626,0.57475186,2751.4,2751.3,0.08039104]
[1646825349625,3.0,2751.3,2750.9,1.1672]
[1646825349834,0.029168,2751.0,2750.5,14.01331403]
[1646825350024,0.54558386,2750.9,2750.5,6.38714677]
[1646825350224,0.029168,2750.7,2750.3,2.13441814]
[1646825350426,0.54558386,2750.6,2750.3,0.96281814]
[1646825350730,0.029168,2750.6,2750.3,0.96281814]
[1646825351332,0.53016706,2750.5,2750.3,0.96281814]
[1646825352130,0.029168,2750.6,2750.3,0.96281814]
[1646825352830,0.029168,2750.6,2750.3,0.96611512]
[1646825353030,2.05193733,2750.9,2750.3,0.96611512]
[1646825353031,3.05193733,2750.9,2750.3,0.96611512]
[1646825353277,0.029168,2750.5,2750.3,0.96611512]
[1646825353476,0.029168,2750.6,2750.3,0.96611512]
[1646825353678,0.53021141,2750.5,2750.3,0.96281814]
[1646825354078,0.53021141,2750.5,2750.3,0.96676588]
[1646825354277,0.029168,2750.6,2750.3,0.96676588]
[1646825354479,0.1817,2751.1,2750.3,2.78520588]
[1646825354678,0.5301282,2751.0,2750.3,2.78520588]
[1646825354885,0.5592962,2751.0,2750.3,3.08125814]
[1646825355078,0.5301282,2750.9,2750.3,3.74425814]
[1646825355282,0.5301282,2750.9,2750.6,0.00394741]
[1646825355480,0.03211857,2751.2,2750.7,1.81814]
[1646825355679,0.53012469,2751.1,2751.0,1.16938346]
[1646825355881,0.53012469,2751.1,2750.9,0.3]
[1646825356082,0.53012469,2751.1,2750.5,1.4498]
[1646825356282,0.029168,2751.0,2750.5,0.3]
[1646825356483,0.53012469,2750.9,2750.8,1.81853]
[1646825356941,0.53012469,2750.9,2750.8,2.70411868]
[1646825357926,0.53012469,2750.9,2750.8,1.81853]
[1646825358927,0.53012469,2751.1,2750.8,2.72758]
[1646825359326,0.55929269,2751.1,2750.8,2.72758]
[1646825359530,0.53012469,2751.0,2750.8,2.72758]
[1646825359928,0.53012469,2751.0,2750.9,1.10094953]
[1646825360136,0.89259859,2751.7,2750.9,1.84594953]
[1646825360137,0.03157217,2751.2,2750.9,1.84594953]
[1646825360331,0.53105423,2751.1,2751.0,0.90896]
[1646825360530,0.66875683,2751.6,2751.1,0.9089]
[1646825360782,0.69792483,2751.6,2751.1,2.72668]
[1646825360978,0.52160198,2751.5,2751.1,2.72668]
[1646825361581,0.52160198,2751.4,2751.1,2.72668]
[1646825361783,1.07429859,2752.0,2751.2,4.76277993]
[1646825361784,0.52160042,2751.3,2751.2,4.76277993]
[1646825362079,0.52160042,2751.3,2751.2,7.02538993]
[1646825362279,0.029168,2751.7,2751.2,7.02538993]
[1646825362479,0.029168,2751.7,2751.3,1.01006048]
[1646825362783,0.029168,2751.7,2751.3,1.91889048]
[1646825362980,0.69792483,2751.7,2751.3,1.91889048]
[1646825363379,0.66875683,2751.6,2751.3,2.21889048]
[1646825363981,0.69792483,2751.6,2751.3,1.20883]
[1646825364183,0.66875683,2751.4,2751.3,1.20883]
[1646825364424,0.029168,2751.4,2751.3,1.20883]
[1646825364724,0.66875683,2751.5,2751.3,1.20883]
[1646825364924,0.029168,2751.4,2751.3,1.20883]
[1646825365226,0.66875683,2751.5,2751.3,1.20883]
[1646825365427,0.66875683,2751.4,2751.3,1.20883]
[1646825365624,0.69792483,2751.4,2751.3,1.20883]
[1646825365829,0.029168,2751.4,2751.3,1.20883]
[1646825366129,0.66875683,2751.4,2751.3,1.20883]
[1646825366430,0.69792483,2751.4,2751.3,0.90883]
[1646825366631,0.029168,2751.4,2751.3,0.90883]
[1646825366830,0.69876393,2751.4,2751.3,0.90883]
[1646825367030,0.029168,2751.4,2751.3,0.90883]
[1646825367528,0.03182923,2751.5,2751.3,0.90883]